[Event "Titled Tuesday Blitz February 01 B 2022"]
[White "Zhigalko, Sergei"]
[Black "Hakobyan, Aram"]
[WhiteFideId "13502956"]
[BlackFideId "13306677"]
[WhiteElo "2662"]
[BlackElo "2557"]
[Result "0-1"]
[Round "07"]
[TimeControl "180+1"]
[Date "2022.02.01"]
[WhiteClock "0:00:01"]
[BlackClock "0:00:03"]

1. e4 {[%clk 0:03:00]}  c6 {[%clk 0:02:47]} 2. d4 {[%clk 0:03:00]}  d5 {[%clk 0:02:47]} 3. e5 {[%clk 0:03:01]}  Bf5 {[%clk 0:02:48]} 4. Nf3 {[%clk 0:03:01]}  e6 {[%clk 0:02:47]} 5. Be2 {[%clk 0:03:02]}  Ne7 {[%clk 0:02:47]} 6. O-O {[%clk 0:03:02]}  Nd7 {[%clk 0:02:47]} 7. Nbd2 {[%clk 0:03:02]}  Ng6 {[%clk 0:02:40]} 8. Nb3 {[%clk 0:02:54]}  f6 {[%clk 0:02:40]} 9. Ne1 {[%clk 0:02:55]}  h5 {[%clk 0:02:33]} 10. f4 {[%clk 0:02:55]}  h4 {[%clk 0:02:30]} 11. Nd3 {[%clk 0:02:50]}  b6 {[%clk 0:02:26]} 12. Bg4 {[%clk 0:02:43]}  Ne7 {[%clk 0:02:19]} 13. Be3 {[%clk 0:02:33]}  Rc8 {[%clk 0:02:17]} 14. a4 {[%clk 0:02:27]}  Kf7 {[%clk 0:02:08]} 15. a5 {[%clk 0:02:27]}  Bxg4 {[%clk 0:02:08]} 16. Qxg4 {[%clk 0:02:20]}  Nf5 {[%clk 0:02:09]} 17. Bf2 {[%clk 0:02:10]}  c5 {[%clk 0:02:09]} 18. axb6 {[%clk 0:02:05]}  axb6 {[%clk 0:02:10]} 19. dxc5 {[%clk 0:01:44]}  bxc5 {[%clk 0:02:09]} 20. Ra7 {[%clk 0:01:05]}  Rc7 {[%clk 0:02:02]} 21. Rfa1 {[%clk 0:01:05]}  Kg8 {[%clk 0:00:48]} 22. exf6 {[%clk 0:00:21]}  Nxf6 {[%clk 0:00:49]} 23. Qe2 {[%clk 0:00:22]}  Ne4 {[%clk 0:00:49]} 24. Nd2 {[%clk 0:00:20]}  Nfd6 {[%clk 0:00:48]} 25. Ra8 {[%clk 0:00:18]}  Rc8 {[%clk 0:00:48]} 26. R8a7 {[%clk 0:00:18]}  Rh6 {[%clk 0:00:42]} 27. Ne5 {[%clk 0:00:16]}  Nxf2 {[%clk 0:00:29]} 28. Qxf2 {[%clk 0:00:15]}  c4 {[%clk 0:00:29]} 29. Kh1 {[%clk 0:00:11]}  Qe8 {[%clk 0:00:22]} 30. Ndf3 {[%clk 0:00:07]}  Nf5 {[%clk 0:00:22]} 31. c3 {[%clk 0:00:03]}  Bc5 {[%clk 0:00:16]} 32. Nd4 {[%clk 0:00:03]}  Ng3+ {[%clk 0:00:13]} 33. Kg1 {[%clk 0:00:03]}  Bxa7 {[%clk 0:00:13]} 34. Rxa7 {[%clk 0:00:02]}  Ne4 {[%clk 0:00:13]} 35. Qe1 {[%clk 0:00:02]}  Ra8 {[%clk 0:00:14]} 36. Qa1 {[%clk 0:00:02]}  Rxa7 {[%clk 0:00:12]} 37. Qxa7 {[%clk 0:00:03]}  h3 {[%clk 0:00:12]} 38. g3 {[%clk 0:00:03]}  Qh5 {[%clk 0:00:13]} 39. Ndf3 {[%clk 0:00:03]}  Rf6 {[%clk 0:00:12]} 40. Qd7 {[%clk 0:00:03]}  Nd2 {[%clk 0:00:10]} 41. Kf2 {[%clk 0:00:02]}  Nxf3 {[%clk 0:00:10]} 42. Nxf3 {[%clk 0:00:03]}  Qf5 {[%clk 0:00:10]} 43. Qe8+ {[%clk 0:00:02]}  Rf8 {[%clk 0:00:10]} 44. Qe7 {[%clk 0:00:01]}  Qc2+ {[%clk 0:00:11]} 45. Ke3 {[%clk 0:00:01]}  Qe4+ {[%clk 0:00:11]} 46. Kf2 {[%clk 0:00:01]}  Qf5 {[%clk 0:00:03]} 47. Ng5 {[%clk 0:00:01]}  e5 {[%clk 0:00:03]} 0-1


[Site "https://www.chess.com"]

[Event "Titled Tuesday Blitz February 01 B 2022"]
[White "Araujo Sanchez, Josue"]
[Black "Zhigalko, Sergei"]
[WhiteFideId "6416896"]
[BlackFideId "13502956"]
[WhiteElo "2357"]
[BlackElo "2662"]
[Result "0-1"]
[Round "08"]
[TimeControl "180+1"]
[Date "2022.02.01"]
[WhiteClock "0:00:01"]
[BlackClock "0:00:02"]

1. d4 {[%clk 0:03:00]}  Nf6 {[%clk 0:03:00]} 2. Nf3 {[%clk 0:03:01]}  e6 {[%clk 0:03:00]} 3. Bf4 {[%clk 0:03:01]}  b6 {[%clk 0:02:59]} 4. e3 {[%clk 0:03:01]}  Bb7 {[%clk 0:03:00]} 5. Nbd2 {[%clk 0:03:02]}  Nh5 {[%clk 0:03:01]} 6. Bg5 {[%clk 0:03:01]}  Be7 {[%clk 0:03:00]} 7. Bxe7 {[%clk 0:03:01]}  Qxe7 {[%clk 0:03:01]} 8. a4 {[%clk 0:02:59]}  a6 {[%clk 0:03:01]} 9. c3 {[%clk 0:02:59]}  d6 {[%clk 0:03:02]} 10. Bd3 {[%clk 0:02:58]}  Nd7 {[%clk 0:03:02]} 11. Qe2 {[%clk 0:02:59]}  c5 {[%clk 0:02:55]} 12. O-O {[%clk 0:02:55]}  O-O {[%clk 0:02:55]} 13. Rfc1 {[%clk 0:02:52]}  Rfd8 {[%clk 0:02:52]} 14. Nc4 {[%clk 0:02:43]}  g6 {[%clk 0:02:44]} 15. Ncd2 {[%clk 0:02:33]}  Ndf6 {[%clk 0:02:38]} 16. Rab1 {[%clk 0:02:18]}  e5 {[%clk 0:02:37]} 17. dxe5 {[%clk 0:02:12]}  dxe5 {[%clk 0:02:36]} 18. Bc4 {[%clk 0:02:07]}  Qe8 {[%clk 0:02:19]} 19. Ng5 {[%clk 0:01:53]}  Rd7 {[%clk 0:01:55]} 20. Ndf3 {[%clk 0:01:43]}  h6 {[%clk 0:01:44]} 21. Nh3 {[%clk 0:01:26]}  Rd6 {[%clk 0:01:17]} 22. Rd1 {[%clk 0:01:24]}  Rxd1+ {[%clk 0:01:07]} 23. Rxd1 {[%clk 0:01:21]}  Bxf3 {[%clk 0:00:56]} 24. Qxf3 {[%clk 0:01:09]}  e4 {[%clk 0:00:56]} 25. Qe2 {[%clk 0:01:09]}  Qxa4 {[%clk 0:00:56]} 26. g4 {[%clk 0:01:05]}  Ng7 {[%clk 0:00:43]} 27. Rd6 {[%clk 0:01:04]}  b5 {[%clk 0:00:20]} 28. Rxf6 {[%clk 0:00:42]}  Qxc4 {[%clk 0:00:16]} 29. Qxc4 {[%clk 0:00:40]}  bxc4 {[%clk 0:00:17]} 30. Nf4 {[%clk 0:00:38]}  g5 {[%clk 0:00:11]} 31. Nd5 {[%clk 0:00:37]}  Ne6 {[%clk 0:00:10]} 32. Rf5 {[%clk 0:00:31]}  Rb8 {[%clk 0:00:09]} 33. Nf6+ {[%clk 0:00:32]}  Kg7 {[%clk 0:00:09]} 34. Nxe4 {[%clk 0:00:32]}  Rxb2 {[%clk 0:00:03]} 35. Nxc5 {[%clk 0:00:33]}  Rc2 {[%clk 0:00:03]} 36. Nxa6 {[%clk 0:00:27]}  Rxc3 {[%clk 0:00:03]} 37. Kg2 {[%clk 0:00:24]}  Rc1 {[%clk 0:00:03]} 38. Nc5 {[%clk 0:00:23]}  c3 {[%clk 0:00:03]} 39. Nxe6+ {[%clk 0:00:22]}  fxe6 {[%clk 0:00:04]} 40. Rc5 {[%clk 0:00:23]}  Kf6 {[%clk 0:00:03]} 41. Kf3 {[%clk 0:00:23]}  Rc2 {[%clk 0:00:03]} 42. h3 {[%clk 0:00:18]}  Ke7 {[%clk 0:00:04]} 43. Rc4 {[%clk 0:00:16]}  Kd6 {[%clk 0:00:04]} 44. Rc8 {[%clk 0:00:13]}  Kd5 {[%clk 0:00:03]} 45. Rc7 {[%clk 0:00:11]}  Kd6 {[%clk 0:00:03]} 46. Rc8 {[%clk 0:00:11]}  Kd7 {[%clk 0:00:03]} 47. Rc4 {[%clk 0:00:10]}  Kd6 {[%clk 0:00:04]} 48. Ke4 {[%clk 0:00:11]}  Rxf2 {[%clk 0:00:03]} 49. Rxc3 {[%clk 0:00:11]}  Rh2 {[%clk 0:00:04]} 50. Rd3+ {[%clk 0:00:09]}  Ke7 {[%clk 0:00:04]} 51. Ke5 {[%clk 0:00:08]}  Rxh3 {[%clk 0:00:04]} 52. Ra3 {[%clk 0:00:08]}  Rg3 {[%clk 0:00:04]} 53. Ra7+ {[%clk 0:00:07]}  Kf8 {[%clk 0:00:04]} 54. e4 {[%clk 0:00:04]}  Rxg4 {[%clk 0:00:02]} 55. Kf6 {[%clk 0:00:04]}  Rf4+ {[%clk 0:00:02]} 56. Ke5 {[%clk 0:00:02]}  h5 {[%clk 0:00:02]} 57. Rh7 {[%clk 0:00:01]}  h4 {[%clk 0:00:02]} 0-1


[Site "https://www.chess.com"]

[Event "Titled Tuesday Blitz February 01 B 2022"]
[White "Beerdsen, Thomas"]
[Black "Svane, Rasmus"]
[WhiteFideId "1030108"]
[BlackFideId "4657101"]
[WhiteElo "2585"]
[BlackElo "2645"]
[Result "0-1"]
[Round "08"]
[TimeControl "180+1"]
[Date "2022.02.01"]
[WhiteClock "0:00:04"]
[BlackClock "0:00:06"]

1. e4 {[%clk 0:02:34]}  e5 {[%clk 0:02:59]} 2. Nf3 {[%clk 0:02:34]}  Nc6 {[%clk 0:03:00]} 3. Bc4 {[%clk 0:02:34]}  Bc5 {[%clk 0:02:59]} 4. O-O {[%clk 0:02:34]}  Nf6 {[%clk 0:02:59]} 5. d4 {[%clk 0:02:35]}  Bxd4 {[%clk 0:02:55]} 6. Nxd4 {[%clk 0:02:35]}  Nxd4 {[%clk 0:02:56]} 7. Bg5 {[%clk 0:02:35]}  d6 {[%clk 0:02:51]} 8. f4 {[%clk 0:02:35]}  Be6 {[%clk 0:02:51]} 9. Nd2 {[%clk 0:02:27]}  Qe7 {[%clk 0:02:48]} 10. c3 {[%clk 0:02:24]}  Bxc4 {[%clk 0:02:47]} 11. Nxc4 {[%clk 0:02:25]}  Ne6 {[%clk 0:02:47]} 12. fxe5 {[%clk 0:02:18]}  dxe5 {[%clk 0:02:38]} 13. Bxf6 {[%clk 0:02:03]}  gxf6 {[%clk 0:02:39]} 14. Qa4+ {[%clk 0:02:02]}  c6 {[%clk 0:02:34]} 15. Rad1 {[%clk 0:02:01]}  b5 {[%clk 0:02:20]} 16. Qa6 {[%clk 0:02:01]}  Qc5+ {[%clk 0:02:20]} 17. Kh1 {[%clk 0:02:00]}  bxc4 {[%clk 0:02:15]} 18. Rxf6 {[%clk 0:01:58]}  O-O {[%clk 0:02:06]} 19. Rdf1 {[%clk 0:01:59]}  Rab8 {[%clk 0:01:55]} 20. b4 {[%clk 0:01:58]}  cxb3 {[%clk 0:01:51]} 21. axb3 {[%clk 0:01:59]}  Rxb3 {[%clk 0:01:40]} 22. Qe2 {[%clk 0:01:59]}  Rxc3 {[%clk 0:01:40]} 23. Qd2 {[%clk 0:01:45]}  Qe3 {[%clk 0:01:31]} 24. Qd1 {[%clk 0:01:38]}  Qxe4 {[%clk 0:01:22]} 25. Qh5 {[%clk 0:01:07]}  Rc2 {[%clk 0:01:14]} 26. Qh3 {[%clk 0:01:06]}  Ng7 {[%clk 0:01:07]} 27. Rxf7 {[%clk 0:01:04]}  Rd8 {[%clk 0:00:49]} 28. Qg3 {[%clk 0:00:27]}  Qg6 {[%clk 0:00:49]} 29. Qf3 {[%clk 0:00:24]}  h5 {[%clk 0:00:49]} 30. Rf6 {[%clk 0:00:18]}  Qg4 {[%clk 0:00:49]} 31. Qb3+ {[%clk 0:00:17]}  Qc4 {[%clk 0:00:43]} 32. Qb7 {[%clk 0:00:10]}  Rc1 {[%clk 0:00:41]} 33. Kg1 {[%clk 0:00:05]}  Rxf1+ {[%clk 0:00:38]} 34. Rxf1 {[%clk 0:00:06]}  Rf8 {[%clk 0:00:37]} 35. Re1 {[%clk 0:00:03]}  Qc3 {[%clk 0:00:25]} 36. Rd1 {[%clk 0:00:02]}  Qe3+ {[%clk 0:00:22]} 37. Kh1 {[%clk 0:00:02]}  Qe2 {[%clk 0:00:21]} 38. Qb3+ {[%clk 0:00:02]}  Kh8 {[%clk 0:00:19]} 39. Qb1 {[%clk 0:00:01]}  e4 {[%clk 0:00:15]} 40. Re1 {[%clk 0:00:02]}  Qg4 {[%clk 0:00:16]} 41. h3 {[%clk 0:00:03]}  Qg6 {[%clk 0:00:16]} 42. Rxe4 {[%clk 0:00:03]}  Rf1+ {[%clk 0:00:15]} 43. Qxf1 {[%clk 0:00:03]}  Qxe4 {[%clk 0:00:16]} 44. Qa1 {[%clk 0:00:03]}  Qe7 {[%clk 0:00:12]} 45. Qc3 {[%clk 0:00:04]}  c5 {[%clk 0:00:12]} 46. Qc1 {[%clk 0:00:03]}  Qe5 {[%clk 0:00:10]} 47. Qh6+ {[%clk 0:00:03]}  Kg8 {[%clk 0:00:11]} 48. Qa6 {[%clk 0:00:04]}  Qc7 {[%clk 0:00:09]} 49. Qc4+ {[%clk 0:00:04]}  Kh8 {[%clk 0:00:09]} 50. Qc1 {[%clk 0:00:03]}  c4 {[%clk 0:00:09]} 51. Qh6+ {[%clk 0:00:03]}  Kg8 {[%clk 0:00:10]} 52. Qa6 {[%clk 0:00:03]}  c3 {[%clk 0:00:10]} 53. Qa2+ {[%clk 0:00:03]}  Kh8 {[%clk 0:00:10]} 54. Qc2 {[%clk 0:00:03]}  a5 {[%clk 0:00:10]} 55. g4 {[%clk 0:00:03]}  hxg4 {[%clk 0:00:10]} 56. hxg4 {[%clk 0:00:04]}  Qg3 {[%clk 0:00:09]} 57. g5 {[%clk 0:00:03]}  Qh3+ {[%clk 0:00:05]} 58. Kg1 {[%clk 0:00:04]}  Qe3+ {[%clk 0:00:06]} 59. Kh1 {[%clk 0:00:04]}  Qd2 {[%clk 0:00:06]} 60. Qe4 {[%clk 0:00:04]}  c2 {[%clk 0:00:06]} 61. Qh4+ {[%clk 0:00:04]}  Kg8 {[%clk 0:00:06]} 62. Qc4+ {[%clk 0:00:05]}  Kf8 {[%clk 0:00:06]} 63. Qf4+ {[%clk 0:00:04]}  Qxf4 {[%clk 0:00:06]} 0-1


[Site "https://www.chess.com"]

[Event "Titled Tuesday Blitz February 01 B 2022"]
[White "Hess, Robert"]
[Black "Loay, Sameer"]
[WhiteFideId "2022036"]
[BlackFideId "8104239"]
[WhiteElo "2557"]
[BlackElo "2040"]
[Result "1-0"]
[Round "08"]
[TimeControl "180+1"]
[Date "2022.02.01"]
[WhiteClock "0:00:08"]
[BlackClock "0:00:17"]

1. b3 {[%clk 0:03:00]}  d6 {[%clk 0:02:59]} 2. Bb2 {[%clk 0:03:00]}  Nd7 {[%clk 0:03:00]} 3. e3 {[%clk 0:03:01]}  Ngf6 {[%clk 0:03:00]} 4. Ne2 {[%clk 0:03:01]}  g6 {[%clk 0:03:01]} 5. d3 {[%clk 0:03:01]}  Bg7 {[%clk 0:03:01]} 6. Nd2 {[%clk 0:03:01]}  O-O {[%clk 0:03:02]} 7. c4 {[%clk 0:03:02]}  e5 {[%clk 0:03:02]} 8. Qc2 {[%clk 0:03:02]}  b6 {[%clk 0:03:02]} 9. O-O-O {[%clk 0:02:53]}  Bb7 {[%clk 0:03:03]} 10. Rg1 {[%clk 0:02:53]}  a5 {[%clk 0:03:03]} 11. g4 {[%clk 0:02:52]}  a4 {[%clk 0:03:03]} 12. b4 {[%clk 0:02:47]}  a3 {[%clk 0:03:03]} 13. Bc3 {[%clk 0:02:46]}  h6 {[%clk 0:02:31]} 14. h4 {[%clk 0:02:42]}  d5 {[%clk 0:02:23]} 15. g5 {[%clk 0:02:37]}  hxg5 {[%clk 0:02:24]} 16. hxg5 {[%clk 0:02:38]}  Nh5 {[%clk 0:02:23]} 17. Bg2 {[%clk 0:02:38]}  c6 {[%clk 0:02:18]} 18. Bf3 {[%clk 0:02:36]}  d4 {[%clk 0:02:01]} 19. exd4 {[%clk 0:02:02]}  exd4 {[%clk 0:02:02]} 20. Nxd4 {[%clk 0:01:50]}  Nf4 {[%clk 0:01:45]} 21. Rg4 {[%clk 0:01:33]}  Nxd3+ {[%clk 0:01:26]} 22. Qxd3 {[%clk 0:01:28]}  Ne5 {[%clk 0:01:26]} 23. Qe4 {[%clk 0:01:12]}  c5 {[%clk 0:01:26]} 24. Qxb7 {[%clk 0:01:08]}  Nxg4 {[%clk 0:01:17]} 25. Nc6 {[%clk 0:00:30]}  Qd3 {[%clk 0:00:49]} 26. Ne7+ {[%clk 0:00:19]}  Kh7 {[%clk 0:00:47]} 27. Ne4 {[%clk 0:00:14]}  Rab8 {[%clk 0:00:19]} 28. Rxd3 {[%clk 0:00:13]}  Rxb7 {[%clk 0:00:18]} 29. Nf6+ {[%clk 0:00:11]}  Nxf6 {[%clk 0:00:16]} 30. Bxb7 {[%clk 0:00:10]}  Bh6 {[%clk 0:00:17]} 31. gxh6 {[%clk 0:00:08]} 1-0


[Site "https://www.chess.com"]

[Event "Titled Tuesday Blitz February 01 B 2022"]
[White "Ibarra Jerez, Jose Carlos"]
[Black "Paravyan, David"]
[WhiteFideId "2226332"]
[BlackFideId "4194985"]
[WhiteElo "2626"]
[BlackElo "2569"]
[Result "0-1"]
[Round "08"]
[TimeControl "180+1"]
[Date "2022.02.01"]
[WhiteClock "0:00:01"]
[BlackClock "0:00:07"]

1. e4 {[%clk 0:03:00]}  e5 {[%clk 0:02:41]} 2. Nf3 {[%clk 0:02:59]}  Nf6 {[%clk 0:02:41]} 3. Nxe5 {[%clk 0:02:56]}  d6 {[%clk 0:02:42]} 4. Nc4 {[%clk 0:02:56]}  Nxe4 {[%clk 0:02:42]} 5. Qe2 {[%clk 0:02:54]}  Qe7 {[%clk 0:02:42]} 6. Ne3 {[%clk 0:02:54]}  c6 {[%clk 0:02:42]} 7. b3 {[%clk 0:02:48]}  Qe5 {[%clk 0:02:38]} 8. c3 {[%clk 0:02:45]}  Be7 {[%clk 0:02:35]} 9. g3 {[%clk 0:02:41]}  d5 {[%clk 0:02:31]} 10. Bg2 {[%clk 0:02:40]}  O-O {[%clk 0:02:28]} 11. O-O {[%clk 0:02:41]}  Nf6 {[%clk 0:02:18]} 12. d4 {[%clk 0:02:37]}  Qh5 {[%clk 0:02:15]} 13. Qxh5 {[%clk 0:02:04]}  Nxh5 {[%clk 0:02:16]} 14. c4 {[%clk 0:02:02]}  dxc4 {[%clk 0:02:15]} 15. bxc4 {[%clk 0:02:02]}  Nf6 {[%clk 0:02:11]} 16. Nc3 {[%clk 0:01:58]}  Bb4 {[%clk 0:02:07]} 17. Bb2 {[%clk 0:01:57]}  Na6 {[%clk 0:02:00]} 18. d5 {[%clk 0:01:48]}  Bd7 {[%clk 0:01:59]} 19. Rad1 {[%clk 0:01:42]}  Rfe8 {[%clk 0:01:54]} 20. Ne2 {[%clk 0:01:24]}  Nc5 {[%clk 0:01:46]} 21. Bxf6 {[%clk 0:01:14]}  gxf6 {[%clk 0:01:47]} 22. Nd4 {[%clk 0:01:15]}  Rac8 {[%clk 0:01:22]} 23. Ndf5 {[%clk 0:01:14]}  Ne4 {[%clk 0:01:16]} 24. Bh3 {[%clk 0:00:52]}  Kf8 {[%clk 0:00:56]} 25. Rb1 {[%clk 0:00:48]}  a5 {[%clk 0:00:50]} 26. a3 {[%clk 0:00:48]}  Bxa3 {[%clk 0:00:47]} 27. Rxb7 {[%clk 0:00:49]}  Nc5 {[%clk 0:00:47]} 28. Ra7 {[%clk 0:00:41]}  Ra8 {[%clk 0:00:43]} 29. Rxa8 {[%clk 0:00:28]}  Rxa8 {[%clk 0:00:44]} 30. Bg2 {[%clk 0:00:29]}  cxd5 {[%clk 0:00:39]} 31. Nd4 {[%clk 0:00:19]}  Bb2 {[%clk 0:00:36]} 32. Nb5 {[%clk 0:00:15]}  a4 {[%clk 0:00:34]} 33. Nxd5 {[%clk 0:00:13]}  Bc6 {[%clk 0:00:27]} 34. Nb4 {[%clk 0:00:08]}  Bxg2 {[%clk 0:00:25]} 35. Kxg2 {[%clk 0:00:09]}  a3 {[%clk 0:00:25]} 36. Na2 {[%clk 0:00:09]}  Ra4 {[%clk 0:00:22]} 37. Nd6 {[%clk 0:00:06]}  Be5 {[%clk 0:00:22]} 38. Rd1 {[%clk 0:00:06]}  Bxd6 {[%clk 0:00:18]} 39. Rxd6 {[%clk 0:00:07]}  Rxc4 {[%clk 0:00:18]} 40. Rd8+ {[%clk 0:00:06]}  Kg7 {[%clk 0:00:18]} 41. Rc8 {[%clk 0:00:03]}  Rc2 {[%clk 0:00:17]} 42. Nb4 {[%clk 0:00:04]}  Rc4 {[%clk 0:00:11]} 43. Nd5 {[%clk 0:00:03]}  a2 {[%clk 0:00:10]} 44. Ne7 {[%clk 0:00:02]}  f5 {[%clk 0:00:08]} 45. Nxf5+ {[%clk 0:00:01]}  Kf6 {[%clk 0:00:09]} 46. Nd6 {[%clk 0:00:01]}  Rc1 {[%clk 0:00:07]} 0-1


[Site "https://www.chess.com"]

[Event "Titled Tuesday Blitz February 01 B 2022"]
[White "Jobava, Baadur"]
[Black "Nakamura, Hikaru"]
[WhiteFideId "13601520"]
[BlackFideId "2016192"]
[WhiteElo "2617"]
[BlackElo "2850"]
[Result "0-1"]
[Round "08"]
[TimeControl "180+1"]
[Date "2022.02.01"]
[WhiteClock "0:00:06"]
[BlackClock "0:00:13"]

1. e4 {[%clk 0:03:00]}  g6 {[%clk 0:02:54]} 2. d4 {[%clk 0:03:00]}  Bg7 {[%clk 0:02:55]} 3. c4 {[%clk 0:02:58]}  d6 {[%clk 0:02:54]} 4. f4 {[%clk 0:02:58]}  c5 {[%clk 0:02:54]} 5. d5 {[%clk 0:02:57]}  e6 {[%clk 0:02:52]} 6. Nc3 {[%clk 0:02:55]}  exd5 {[%clk 0:02:52]} 7. cxd5 {[%clk 0:02:53]}  a6 {[%clk 0:02:48]} 8. Nf3 {[%clk 0:02:52]}  Bg4 {[%clk 0:02:45]} 9. Be2 {[%clk 0:02:52]}  Bxf3 {[%clk 0:02:45]} 10. Bxf3 {[%clk 0:02:52]}  Nd7 {[%clk 0:02:45]} 11. O-O {[%clk 0:02:51]}  Ne7 {[%clk 0:02:42]} 12. Kh1 {[%clk 0:02:48]}  O-O {[%clk 0:02:40]} 13. g4 {[%clk 0:02:42]}  c4 {[%clk 0:02:36]} 14. Be3 {[%clk 0:02:41]}  b5 {[%clk 0:02:32]} 15. e5 {[%clk 0:02:38]}  f5 {[%clk 0:02:24]} 16. e6 {[%clk 0:02:29]}  Nf6 {[%clk 0:02:19]} 17. g5 {[%clk 0:02:27]}  Ne4 {[%clk 0:02:07]} 18. Bxe4 {[%clk 0:02:10]}  Bxc3 {[%clk 0:02:06]} 19. bxc3 {[%clk 0:01:54]}  fxe4 {[%clk 0:02:06]} 20. Qd4 {[%clk 0:01:46]}  Qc7 {[%clk 0:02:06]} 21. Qxe4 {[%clk 0:01:44]}  Qb7 {[%clk 0:02:06]} 22. Rad1 {[%clk 0:01:43]}  Rf5 {[%clk 0:02:06]} 23. Rd4 {[%clk 0:01:32]}  Rc8 {[%clk 0:02:04]} 24. Rfd1 {[%clk 0:01:31]}  Rc5 {[%clk 0:02:01]} 25. Kg2 {[%clk 0:01:25]}  Rcxd5 {[%clk 0:01:43]} 26. Kf3 {[%clk 0:01:23]}  Qc6 {[%clk 0:01:40]} 27. Rxd5 {[%clk 0:01:13]}  Rxd5 {[%clk 0:01:41]} 28. Bd4 {[%clk 0:01:05]}  b4 {[%clk 0:01:21]} 29. Rb1 {[%clk 0:00:51]}  a5 {[%clk 0:01:17]} 30. h4 {[%clk 0:00:17]}  Qa4 {[%clk 0:00:20]} 31. Re1 {[%clk 0:00:08]}  Qxa2 {[%clk 0:00:17]} 32. Kg4 {[%clk 0:00:07]}  Qh2 {[%clk 0:00:13]} 33. Bf6 {[%clk 0:00:06]}  Nf5 {[%clk 0:00:13]} 0-1


[Site "https://www.chess.com"]

[Event "Titled Tuesday Blitz February 01 B 2022"]
[White "Kollars, Dmitrij"]
[Black "Bok, Benjamin"]
[WhiteFideId "12909572"]
[BlackFideId "1017063"]
[WhiteElo "2584"]
[BlackElo "2658"]
[Result "0-1"]
[Round "08"]
[TimeControl "180+1"]
[Date "2022.02.01"]
[WhiteClock "0:00:06"]
[BlackClock "0:00:04"]

1. e4 {[%clk 0:03:00]}  c5 {[%clk 0:03:00]} 2. c3 {[%clk 0:02:57]}  Nf6 {[%clk 0:02:59]} 3. e5 {[%clk 0:02:57]}  Nd5 {[%clk 0:03:00]} 4. Bc4 {[%clk 0:02:57]}  Nb6 {[%clk 0:02:44]} 5. Bb3 {[%clk 0:02:57]}  d6 {[%clk 0:02:42]} 6. exd6 {[%clk 0:02:51]}  e6 {[%clk 0:02:31]} 7. d4 {[%clk 0:02:46]}  cxd4 {[%clk 0:02:18]} 8. cxd4 {[%clk 0:02:38]}  Bxd6 {[%clk 0:02:09]} 9. Nf3 {[%clk 0:02:38]}  O-O {[%clk 0:02:08]} 10. O-O {[%clk 0:02:38]}  Bd7 {[%clk 0:02:07]} 11. Nc3 {[%clk 0:02:35]}  Bc6 {[%clk 0:02:07]} 12. Re1 {[%clk 0:02:28]}  N8d7 {[%clk 0:01:58]} 13. Qd3 {[%clk 0:02:25]}  Nf6 {[%clk 0:01:30]} 14. Bg5 {[%clk 0:02:22]}  h6 {[%clk 0:01:30]} 15. Bh4 {[%clk 0:02:22]}  Re8 {[%clk 0:01:06]} 16. Bc2 {[%clk 0:02:14]}  Rc8 {[%clk 0:01:03]} 17. Rad1 {[%clk 0:02:03]}  Nbd5 {[%clk 0:01:02]} 18. Nxd5 {[%clk 0:01:42]}  Bxd5 {[%clk 0:01:03]} 19. Ne5 {[%clk 0:01:37]}  Qc7 {[%clk 0:00:16]} 20. Bb1 {[%clk 0:01:23]}  g5 {[%clk 0:00:17]} 21. Qg3 {[%clk 0:00:45]}  Nh5 {[%clk 0:00:12]} 22. Qg4 {[%clk 0:00:25]}  Nf6 {[%clk 0:00:11]} 23. Qg3 {[%clk 0:00:26]}  Nh5 {[%clk 0:00:11]} 24. Qd3 {[%clk 0:00:26]}  f6 {[%clk 0:00:11]} 25. Qg6+ {[%clk 0:00:25]}  Qg7 {[%clk 0:00:10]} 26. Qxh5 {[%clk 0:00:24]}  fxe5 {[%clk 0:00:10]} 27. Bg3 {[%clk 0:00:21]}  Rf8 {[%clk 0:00:05]} 28. h4 {[%clk 0:00:16]}  gxh4 {[%clk 0:00:04]} 29. Qxh4 {[%clk 0:00:17]}  Be7 {[%clk 0:00:02]} 30. Qh3 {[%clk 0:00:15]}  exd4 {[%clk 0:00:02]} 31. Rxe6 {[%clk 0:00:15]}  Bxe6 {[%clk 0:00:02]} 32. Qxe6+ {[%clk 0:00:15]}  Kh8 {[%clk 0:00:02]} 33. Kh2 {[%clk 0:00:09]}  Bf6 {[%clk 0:00:02]} 34. Bd3 {[%clk 0:00:06]}  Rce8 {[%clk 0:00:02]} 35. Qh3 {[%clk 0:00:07]}  Be5 {[%clk 0:00:02]} 36. Rc1 {[%clk 0:00:06]}  Rxf2 {[%clk 0:00:01]} 37. Bxe5 {[%clk 0:00:04]}  Qxe5+ {[%clk 0:00:02]} 38. Kg1 {[%clk 0:00:04]}  Rf6 {[%clk 0:00:03]} 39. Kh1 {[%clk 0:00:04]}  Qe3 {[%clk 0:00:03]} 40. Rc7 {[%clk 0:00:03]}  Qxh3+ {[%clk 0:00:02]} 41. gxh3 {[%clk 0:00:04]}  Rf2 {[%clk 0:00:02]} 42. Kg1 {[%clk 0:00:02]}  Rxb2 {[%clk 0:00:02]} 43. Kf1 {[%clk 0:00:02]}  Rxa2 {[%clk 0:00:02]} 44. Rh7+ {[%clk 0:00:01]}  Kg8 {[%clk 0:00:02]} 45. Rxh6 {[%clk 0:00:02]}  Rd2 {[%clk 0:00:02]} 46. Bc4+ {[%clk 0:00:02]}  Kg7 {[%clk 0:00:02]} 47. Rh4 {[%clk 0:00:01]}  Rc8 {[%clk 0:00:02]} 48. Rg4+ {[%clk 0:00:02]}  Kf6 {[%clk 0:00:02]} 49. Be2 {[%clk 0:00:03]}  Rc1+ {[%clk 0:00:01]} 50. Kf2 {[%clk 0:00:03]}  Rcc2 {[%clk 0:00:02]} 51. Rf4+ {[%clk 0:00:04]}  Ke5 {[%clk 0:00:02]} 52. Rf8 {[%clk 0:00:05]}  Rxe2+ {[%clk 0:00:02]} 53. Kg3 {[%clk 0:00:05]}  Re3+ {[%clk 0:00:03]} 54. Kg4 {[%clk 0:00:06]}  Kd5 {[%clk 0:00:03]} 55. Kf4 {[%clk 0:00:06]}  Kc4 {[%clk 0:00:04]} 0-1


[Site "https://www.chess.com"]